fUSD/lending_fUSD_20240404
["ID","MTS","AMOUNT","RATE_DAILY","PERIOD"]
[321451031,1712197837674,-9248.60970128,0.00024495,2]
[321451032,1712197837686,-422.5949828,0.00024495,2]
[321451033,1712197837697,-300.0,0.00024999,2]
[321451034,1712197837707,-300.0,0.00024999,2]
[321451035,1712197837718,-300.0,0.00024999,2]
[321451036,1712197837732,-300.0,0.00024999,2]
[321451037,1712197837744,-300.0,0.00024999,2]
[321451038,1712197837754,-181.94333965,0.00024999,2]
[321451039,1712197837764,-299.11531292,0.00025,2]
[321451040,1712197837776,-850.53527299,0.00025,2]
[321451041,1712197837809,-1451.36899568,0.00025,2]
[321451042,1712197837820,-300.0,0.00025,3]
[321451043,1712197837830,-350.0,0.00027,3]
[321451044,1712197837840,-150.0,0.00027,2]
[321451045,1712197837850,-150.0,0.00027,2]
[321451046,1712197837860,-161.95,0.00027,2]
[321451047,1712197837870,-150.0,0.00027,2]
[321451048,1712197837880,-904.92,0.00027,2]
[321451049,1712197837890,-519.43,0.00027,2]
[321451050,1712197837899,-348.62,0.00027,2]
[321451051,1712197837910,-400.0,0.00029,3]
[321451052,1712197837920,-560.73809275,0.00029,2]
[321451053,1712197837930,-499.99,0.00029,2]
[321451054,1712197837940,-441.09329125,0.000295,3]
[321451055,1712197837950,-2640.21942399,0.0002999,2]
[321451056,1712197837959,-405.20748901,0.0003,4]
[321451057,1712197837970,-606.74427312,0.0003,4]
[321451058,1712197837983,-3206.28076084,0.0003,2]
[321451059,1712197837993,-155.0,0.0003,2]
[321451060,1712197838014,-200.0,0.0003,7]
[321451061,1712197838041,-200.0,0.0003,7]
[321451062,1712197838068,-450.0,0.00031,3]
[321451063,1712197838095,-331.73521384,0.00032,4]
[321451064,1712197838118,-356.0,0.000323,2]
[321451066,1712197838138,-2206.8866,0.00032849,10]
[321451068,1712197838161,-372.46606109,0.00032875,4]
[321451070,1712197838184,-379.80356877,0.00032875,2]
[321451072,1712197838206,-2193.36,0.00032876,2]
[321451074,1712197838228,-2193.36,0.00032876,2]
[321451075,1712197838248,-2193.36,0.00032876,2]
[321451076,1712197838270,-2193.36,0.00032876,2]
[321451077,1712197838292,-2193.36,0.00032876,2]
[321451078,1712197838314,-2193.36,0.00032876,2]
[321451079,1712197838337,-2193.36,0.00032876,2]
[321451080,1712197838359,-2193.36,0.00032876,2]
[321451081,1712197838381,-2193.36,0.00032876,2]
[321451082,1712197838402,-1944.12928194,0.00032876,2]
[321451083,1712197838750,-249.23071806,0.00032876,2]
[321451084,1712197838785,-2193.36,0.00032876,2]
[321451085,1712197838796,-2193.36,0.00032876,2]
[321451086,1712197838806,-2193.36,0.00032876,2]
[321451087,1712197838816,-2065.10855649,0.00032876,2]
[321451088,1712197838886,-128.25144351,0.00032876,2]
[321451089,1712197838896,-2193.36,0.00032876,2]
[321451090,1712197838905,-889.33748514,0.00032876,2]
[321451091,1712197838917,-1006.31068984,0.00032876,2]
[321451092,1712197838928,-297.71182502,0.00032876,2]
[321451093,1712197838938,-2193.36,0.00032876,2]
[321451094,1712197838948,-2193.36,0.00032876,2]
[321451095,1712197838957,-2193.36,0.00032876,2]
[321451096,1712197838966,-2193.36,0.00032876,2]
[321451097,1712197838978,-2193.36,0.00032876,2]
[321451098,1712197838988,-2193.36,0.00032876,2]
[321451099,1712197838997,-2193.36,0.00032876,2]
[321451100,1712197839006,-2193.38290772,0.00032876,2]
[321451101,1712197839016,-156.25,0.00032877,2]
[321451102,1712197839026,-156.25,0.00032877,2]
[321451103,1712197839036,-500.0,0.00033,3]
[321451104,1712197839047,-9055.59018033,0.000348,4]
[321451105,1712197839057,-1281.5331215,0.00035,4]
[321451106,1712197839067,-550.0,0.00035,3]
[321451107,1712197839077,-199.61919567,0.00035,2]
[321451108,1712197839087,-600.0,0.00037,3]
[321451109,1712197839097,-283.45932374,0.00038,4]
[321451110,1712197839107,-266.94,0.00038005,2]
[321451111,1712197839118,-490.11815053,0.000385,4]
[321451112,1712197839128,-274.52999433,0.000387,4]
[321451113,1712197839138,-827.1974071,0.000388,2]
[321451114,1712197839164,-3390.15661129,0.000388,2]
[321451115,1712197839175,-4065.34553289,0.000389,15]
[321451116,1712197839184,-650.0,0.00039,3]
[321451117,1712197839196,-215.62,0.00039751,2]
[321451118,1712197839207,-256.93,0.0003978,10]
[321451119,1712197839216,-4820.5,0.00039876,2]
[321451120,1712197839231,-222.32730158,0.000399,2]
[321451121,1712197839241,-150.0,0.0003996,120]
[321451122,1712197839251,-214.6091896,0.0004,30]
[321451123,1712197839261,-1563.58992237,0.0004,30]
[321451124,1712197839271,-192.76675003,0.0004,2]
[321451125,1712197839281,-547.14230713,0.0004,4]
[321451126,1712197839292,-22103.7237332,0.0004,4]
[321451127,1712197839301,-5758.8947196,0.0004,4]
[321451128,1712197839311,-150.0,0.00040009,2]
[321451129,1712197839320,-279.8934342,0.00040028,2]
[321451130,1712197839330,-1000.0,0.0004005,2]
[321451131,1712197839339,-175.27557722,0.0004021,2]
[321451132,1712197839350,-200.0,0.0004021,2]
[321451133,1712197839359,-653.27182698,0.0004021,30]
[321451134,1712197839369,-256.04237772,0.0004021,30]
[321451135,1712197839379,-389.43740372,0.0004021,15]
[321451136,1712197839389,-3353.30355716,0.0004021,4]
[321451137,1712197839399,-1829.09129581,0.0004021,10]
[321451138,1712197839409,-150.0,0.00040186,2]
[321451139,1712197839418,-150.0,0.00040186,2]
[321451140,1712197839428,-200.0,0.00040186,2]
[321451141,1712197839437,-848.54030361,0.00040244,90]
[321451142,1712197839447,-266.94,0.00040268,2]
[321451143,1712197839456,-999.84,0.000406,2]
[321451144,1712197839465,-449.4281,0.00040624,2]
[321451145,1712197839478,-561.62,0.00040645,15]
[321451146,1712197839487,-848.36,0.00040657,2]
[321451147,1712197839496,-250.0,0.00040718,112]
[321451148,1712197839505,-199.61919567,0.00040989,2]
[321451149,1712197839514,-692.35205847,0.00040999,4]
[321451150,1712197839524,-700.0,0.00041,3]
[321451151,1712197839533,-150.0,0.00041077,2]
[321451152,1712197839543,-183.0,0.00041096,2]
[321451153,1712197839552,-222.32730151,0.00041635,2]
[321451154,1712197839562,-999.84,0.00041675,2]
[321451155,1712197839571,-150.0,0.00042146,2]
[321451156,1712197839581,-156.25,0.00042341,2]
[321451157,1712197839590,-2100.0,0.00042468,14]
[321451158,1712197839600,-266.94,0.00042532,2]
[321451159,1712197839609,-999.84,0.0004275,2]
[321451160,1712197839619,-721.67168931,0.00043,4]
[321451161,1712197839628,-750.0,0.00043,3]
[321451162,1712197839637,-150.0,0.00043215,2]
[321451163,1712197839647,-561.62,0.00043385,15]
[321451164,1712197839656,-152.0,0.00043654,3]
[321451165,1712197839666,-999.84,0.00043825,2]
[321451166,1712197839675,-666.0,0.00043835,2]
[321451167,1712197839684,-162.66,0.00043836,2]
[321451168,1712197839693,-150.0,0.00044,44]
[321451169,1712197839703,-150.0,0.00044284,2]
[321451170,1712197839712,-152.0,0.00044588,4]
[321451171,1712197839721,-180.0,0.00044671,120]
[321451172,1712197839734,-266.94,0.00044796,2]
[321451173,1712197839743,-999.84,0.000449,2]
[321451174,1712197839752,-328.47719203,0.00045,4]
[321451175,1712197839762,-800.0,0.00045,3]
[321451176,1712197839771,-1000.0,0.00045056,2]
[321451177,1712197839781,-150.0,0.00045352,2]
[321451178,1712197839790,-152.0,0.00045521,5]
[321451179,1712197839800,-999.84,0.00045975,2]
[321451180,1712197839810,-561.62,0.00046124,15]
[321451181,1712197839819,-150.0,0.00046136,120]
[321451182,1712197839828,-150.0,0.00046421,2]
[321451183,1712197839838,-152.0,0.00046455,6]
[321451184,1712197839848,-666.0,0.00046575,2]
[321451185,1712197839857,-689.73953905,0.00046667,45]
[321451186,1712197839867,-392.58249689,0.00046667,4]
[321451187,1712197839877,-223.4552445,0.00046667,4]
[321451188,1712197839886,-850.0,0.00047,3]
[321451189,1712197839896,-999.84,0.0004705,2]
[321451190,1712197839905,-266.94,0.0004706,2]
[321451191,1712197839915,-205.56428398,0.00047283,7]
[321451192,1712197839924,-152.0,0.00047388,7]
[321451193,1712197839934,-150.0,0.0004749,2]
[321451194,1712197839943,-1908.62613293,0.00047623,4]
[321451195,1712197839953,-265.4392266,0.00047623,4]
[321451196,1712197839962,-170.29193997,0.00047624,7]
[321451197,1712197839972,-10418.17598975,0.00047624,5]
[321451198,1712197839985,-4873.37282415,0.00047624,30]
[321451199,1712197839994,-151.05748626,0.00047872,30]
[321451200,1712197840004,-156.17754037,0.00047914,30]
[321451201,1712197840013,-162.66,0.00047945,2]
[321451202,1712197840022,-155.37123308,0.00047991,30]
[321451203,1712197840032,-15112.10471881,0.00048,7]
[321451204,1712197840041,-151.0,0.00048,120]
[321451205,1712197840051,-500.0,0.00048,120]
[321451206,1712197840060,-157.6431232,0.00048084,30]
[321451207,1712197840069,-157.6431232,0.00048091,30]
[321451208,1712197840079,-999.84,0.00048125,2]
[321451209,1712197840088,-179.148767,0.00048153,30]
[321451210,1712197840098,-158.99928236,0.00048184,30]
[321451211,1712197840108,-160.20412195,0.00048225,30]
[321451212,1712197840120,-152.0,0.00048322,8]
[321451213,1712197840129,-153.98129708,0.00048346,30]
[321451214,1712197840139,-150.05386159,0.00048385,30]
[321451215,1712197840148,-153.98129708,0.00048455,30]
[321451216,1712197840159,-157.35955129,0.00048556,30]
[321451217,1712197840168,-150.0,0.00048559,2]
[321451218,1712197840178,-166.66666667,0.00048594,30]
[321451219,1712197840187,-153.98129708,0.00048644,30]
[321451220,1712197840196,-150.05386159,0.00048647,30]
[321451221,1712197840206,-157.35955129,0.00048693,30]
[321451222,1712197840216,-151.0,0.00048767,120]
[321451223,1712197840226,-561.62,0.00048864,15]
[321451224,1712197840236,-151.29625457,0.00048884,30]
[321451225,1712197840245,-158.99928236,0.00048915,30]
[321451226,1712197840254,-153.98129708,0.00048972,30]
[321451227,1712197840264,-155.37123308,0.00048984,30]
[321451228,1712197840274,-1211.0,0.00049,4]
[321451229,1712197840283,-900.0,0.00049,3]
[321451230,1712197840293,-157.35955129,0.00049058,30]
[321451231,1712197840302,-155.37123308,0.00049067,30]
[321451232,1712197840311,-151.05748626,0.00049087,30]
[321451233,1712197840321,-999.84,0.000492,2]
[321451234,1712197840330,-154.06850799,0.00049239,30]
[321451235,1712197840339,-151.05748626,0.00049251,30]
[321451236,1712197840348,-152.0,0.00049255,9]
[321451237,1712197840357,-886.60018933,0.000493,4]
[321451238,1712197840365,-199.61919567,0.00049305,7]
[321451239,1712197840375,-666.0,0.00049315,2]
[321451240,1712197840384,-1000.0,0.00049315,7]
[321451241,1712197840393,-1000.0,0.00049315,7]
[321451242,1712197840402,-1000.0,0.00049315,7]
[321451243,1712197840411,-1000.0,0.00049315,7]
[321451244,1712197840420,-1000.0,0.00049315,7]
[321451245,1712197840429,-1000.0,0.00049315,7]
[321451246,1712197840439,-1000.0,0.00049315,7]
[321451247,1712197840448,-1000.0,0.00049315,7]
[321451248,1712197840457,-1000.0,0.00049315,7]
[321451249,1712197840466,-1000.0,0.00049315,7]
[321451250,1712197840476,-1000.0,0.00049315,7]
[321451251,1712197840486,-506.0,0.00049315,7]
[321451252,1712197840495,-266.94,0.00049324,2]
[321451253,1712197840505,-245.69075528,0.00049352,14]
[321451254,1712197840515,-541.18754116,0.00049388,21]
[321451255,1712197840525,-359.23095587,0.00049388,2]
[321451256,1712197840535,-1596.75,0.00049389,60]
[321451257,1712197840545,-421.49,0.00049389,15]
[321451258,1712197840554,-421.49,0.00049389,15]
[321451259,1712197840563,-421.49,0.00049389,15]
[321451260,1712197840573,-421.49,0.00049389,15]
[321451261,1712197840582,-421.49,0.00049389,15]
[321451262,1712197840591,-421.49,0.00049389,15]
[321451263,1712197840601,-421.49,0.00049389,15]
[321451264,1712197840611,-421.49,0.00049389,15]
[321451265,1712197840622,-421.49,0.00049389,15]
[321451266,1712197840632,-245000.0,0.0004939,2]
[321451267,1712197840642,-184.57960791,0.00049488,4]
[321451268,1712197840652,-500.0,0.00049488,2]
[321451269,1712197840662,-809.11316115,0.00049488,7]
[321451270,1712197840671,-217649.498625,0.0004949,15]
[321451271,1712197840681,-1249.0,0.00049495,117]
[321451272,1712197840691,-151.05748626,0.00049496,30]
[321451273,1712197840700,-150.05386159,0.00049501,30]
[321451274,1712197840710,-151.0,0.00049534,120]
[321451275,1712197840719,-150.0,0.00049627,2]
[321451276,1712197840729,-153.89032085,0.00049687,30]
[321451277,1712197840738,-151.05748626,0.00049693,30]
[321451278,1712197840748,-152.22,0.000497,6]
[321451279,1712197840757,-152.22,0.000497,6]
[321451280,1712197840766,-152.22,0.000497,6]
[321451281,1712197840775,-152.22,0.000497,6]
[321451282,1712197840784,-152.22,0.000497,6]
[321451283,1712197840794,-2929.56,0.000497,6]
[321451284,1712197840803,-2929.56,0.000497,6]
[321451285,1712197840813,-2929.56,0.000497,6]
[321451286,1712197840822,-2929.56,0.000497,6]
[321451287,1712197840831,-2929.56,0.000497,6]
[321451288,1712197840841,-2929.56,0.000497,6]
[321451289,1712197840850,-2929.56,0.000497,6]
[321451290,1712197840859,-2929.56,0.000497,6]
[321451291,1712197840868,-2929.56,0.000497,6]
[321451292,1712197840878,-2929.56,0.000497,6]
[321451293,1712197840887,-2929.56,0.000497,6]
[321451294,1712197840896,-2929.56,0.000497,6]
[321451295,1712197840906,-2929.56,0.000497,6]
[321451296,1712197840915,-151.05748626,0.0004972,30]
[321451297,1712197840924,-157.35955129,0.00049726,30]
[321451298,1712197840933,-151.05748626,0.00049732,30]
[321451299,1712197840942,-150.05386159,0.00049758,30]
[321451300,1712197840951,-153.98129708,0.00049793,30]
[321451301,1712197840961,-20777.19534431,0.000498,60]
[321451302,1712197840970,-3000.0,0.000499,2]
[321451303,1712197840983,-166.66666668,0.00049908,30]
[321451304,1712197840993,-644.05783253,0.0005,90]
[321451305,1712197841002,-155.16557422,0.0005,2]
[321451306,1712197841012,-4378.9904888,0.0005,120]
[321451307,1712197841021,-1421.73675848,0.0005,21]
[321451308,1712197841031,-839.29836538,0.0005,2]
[321451309,1712197841040,-27100.9070143,0.0005,4]
[321451310,1712197841049,-1781.0,0.0005,14]
[321451311,1712197841059,-151.0,0.0005,120]
[321451312,1712197841068,-2500.0,0.0005,90]
[321451313,1712197841077,-2500.0,0.0005,90]
[321451314,1712197841087,-500.0,0.0005,120]
[321451315,1712197841097,-150.05386159,0.00050014,60]
[321451316,1712197841192,-1000.0,0.00050062,120]
[321451317,1712197841203,-245.69075527,0.00050123,14]
[321451318,1712197841213,-153.98129708,0.00050143,60]
[321451319,1712197841222,-152.0,0.00050188,10]
[321451320,1712197841233,-1596.75,0.00050211,64]
[321451321,1712197841242,-150.05386159,0.00050222,60]
[321451322,1712197841251,-999.84,0.00050275,2]
[321451323,1712197841260,-151.05748626,0.0005029,60]
[321451324,1712197841270,-151.0,0.00050301,120]
[321451325,1712197841280,-151.05748626,0.00050334,60]
[321451326,1712197841290,-154.06850799,0.00050348,60]
[321451327,1712197841299,-500.0,0.00050372,90]
[321451328,1712197841308,-500.0,0.00050372,90]
[321451329,1712197841317,-157.35955129,0.00050385,60]
[321451330,1712197841326,-150.05386159,0.00050457,60]
[321451331,1712197841335,-167.52558323,0.00050464,60]
[321451332,1712197841345,-153.98129708,0.00050492,60]
[321451333,1712197841354,-158.99928236,0.00050524,60]
[321451334,1712197841363,-153.98129708,0.00050577,60]
[321451335,1712197841373,-158.99928236,0.00050611,60]
[321451336,1712197841382,-150.0,0.00050696,2]
[321451337,1712197841391,-153.98129716,0.00050887,60]
[321451338,1712197841400,-245.69075527,0.00050895,14]
[321451339,1712197841409,-500.0,0.0005092,90]
[321451340,1712197841418,-500.0,0.0005092,90]
[321451341,1712197841427,-157.6431232,0.00050969,60]
[321451342,1712197841436,-215.62,0.00050984,120]
[321451343,1712197841446,-950.0,0.00051,3]
[321451344,1712197841455,-157.35955129,0.00051025,60]
[321451345,1712197841464,-1596.75,0.00051033,68]
[321451346,1712197841475,-151.0,0.00051068,120]
[321451347,1712197841484,-158.99928236,0.00051079,60]
[321451348,1712197841493,-150.0,0.000511,10]
[321451349,1712197841502,-152.0,0.00051122,11]
[321451350,1712197841512,-150.0,0.00051166,7]
[321451351,1712197841521,-150.0,0.00051207,7]
[321451352,1712197841530,-155.41052794,0.00051224,60]
[321451353,1712197841540,-359.23095586,0.00051241,2]
[321451354,1712197841549,-150.0,0.00051315,7]
[321451355,1712197841558,-166.94916546,0.00051317,60]
[321451356,1712197841567,-999.84,0.0005135,2]
[321451357,1712197841577,-150.05386159,0.00051357,60]
[321451358,1712197841586,-155.37123308,0.00051406,60]
[321451359,1712197841595,-150.0,0.00051434,7]
[321451360,1712197841605,-500.0,0.00051468,90]
[321451361,1712197841614,-500.0,0.00051468,90]
[321451362,1712197841624,-176.34670904,0.00051497,60]
[321451363,1712197841633,-150.24195427,0.00051507,120]
[321451364,1712197841642,-162.27289693,0.00051507,120]
[321451365,1712197841651,-151.05748626,0.0005153,60]
[321451366,1712197841661,-155.37123308,0.00051541,60]
[321451367,1712197841670,-150.05386159,0.00051541,60]
[321451368,1712197841680,-266.94,0.00051588,2]
[321451369,1712197841689,-150.0,0.00051598,7]
[321451370,1712197841698,-150.0,0.000516,10]
[321451371,1712197841707,-561.62,0.00051604,120]
[321451372,1712197841716,-150.05386159,0.00051613,60]
[321451373,1712197841728,-245.69075527,0.00051666,14]
[321451374,1712197841737,-157.35955129,0.00051723,60]
[321451375,1712197841745,-150.24195427,0.00051726,120]
[321451376,1712197841755,-150.0,0.00051765,2]
[321451377,1712197841764,-156.25,0.00051806,2]
[321451378,1712197841773,-151.0,0.00051836,120]
[321451379,1712197841782,-1596.75,0.00051855,72]
[321451380,1712197841792,-848.36,0.0005189,120]
[321451381,1712197841801,-150.0,0.00051903,7]
[321451382,1712197841810,-179.148767,0.00051944,60]
[321451383,1712197841819,-150.24195427,0.00051945,120]
[321451384,1712197841828,-157.6431232,0.0005197,60]
[321451385,1712197841837,-153.89032085,0.00051983,60]
[321451386,1712197841846,-150.05386159,0.00051988,60]
[321451387,1712197841856,-3705.76200788,0.00052,120]
[321451388,1712197841865,-152.22,0.00052,7]
[321451389,1712197841874,-152.22,0.00052,7]
[321451390,1712197841883,-152.22,0.00052,7]
[321451391,1712197841891,-152.22,0.00052,7]
[321451392,1712197841900,-152.22,0.00052,7]
[321451393,1712197841909,-152.22,0.00052,7]
[321451394,1712197841918,-152.22,0.00052,7]
[321451395,1712197841928,-152.22,0.00052,7]
[321451396,1712197841936,-152.22,0.00052,7]
[321451397,1712197841945,-152.22,0.00052,7]
[321451398,1712197841954,-2929.56,0.00052,7]
[321451399,1712197841963,-2929.56,0.00052,7]
[321451400,1712197841972,-2929.56,0.00052,7]
[321451401,1712197841983,-2929.56,0.00052,7]
[321451402,1712197841991,-2929.56,0.00052,7]
[321451403,1712197842000,-2929.56,0.00052,7]
[321451404,1712197842009,-2929.56,0.00052,7]
[321451405,1712197842018,-2929.56,0.00052,7]
[321451406,1712197842027,-2929.56,0.00052,7]
[321451407,1712197842037,-2929.56,0.00052,7]
[321451408,1712197842046,-2929.56,0.00052,7]
[321451409,1712197842055,-2929.56,0.00052,7]
[321451410,1712197842064,-2929.56,0.00052,7]
[321451411,1712197842073,-2929.56,0.00052,7]
[321451412,1712197842082,-600.0,0.00052,120]
[321451413,1712197842091,-297.65753795,0.00052016,90]
[321451414,1712197842099,-615.59866911,0.00052016,90]
[321451415,1712197842108,-780.01,0.00052054,30]
[321451416,1712197842119,-350.07153929,0.00052054,2]
[321451417,1712197842128,-162.66,0.00052055,2]
[321451418,1712197842137,-152.0,0.00052055,12]
[321451419,1712197842146,-179.148767,0.00052065,60]
[321451420,1712197842155,-179.14876702,0.00052066,60]
[321451422,1712197842165,-157.35955129,0.00052094,60]
[321451424,1712197842174,-150.0,0.000521,11]
[321451425,1712197842183,-162.27289693,0.00052137,120]
[321451426,1712197842192,-150.24195427,0.00052164,120]
[321451427,1712197842203,-176.34670904,0.0005224,60]
[321451428,1712197842212,-153.89032085,0.00052345,60]
[321451429,1712197842221,-150.05386159,0.00052356,60]
[321451430,1712197842233,-151.0,0.00052356,120]
[321451431,1712197842241,-150.24195427,0.00052384,120]
[321451432,1712197842250,-150.05386159,0.00052407,60]
[321451433,1712197842259,-999.84,0.00052425,2]
[321451434,1712197842269,-90081.46,0.00052427,8]
[321451435,1712197842278,-245.69075527,0.00052438,14]
[321451436,1712197842288,-160.20412195,0.00052502,60]
[321451437,1712197842298,-155.37123308,0.00052513,60]
[321451438,1712197842307,-157.35955129,0.00052543,60]
[321451439,1712197842317,-151.05748626,0.00052546,60]
[321451441,1712197842326,-2748.9,0.00052567,117]
[321451442,1712197842335,-2835.0,0.000526,2]
[321451443,1712197842344,-150.0,0.000526,11]
[321451444,1712197842354,-780.01,0.00052602,30]
[321451445,1712197842364,-150.24195427,0.00052603,120]
[321451446,1712197842373,-151.0,0.00052603,120]
[321451447,1712197842382,-158.99928236,0.00052658,60]
[321451448,1712197842392,-1596.75,0.00052677,120]
[321451449,1712197842401,-153.89032085,0.00052693,60]
[321451450,1712197842410,-162.27289693,0.0005274,120]
[321451451,1712197842419,-150.05386159,0.00052772,60]
[321451452,1712197842429,-150.0,0.00052811,7]
[321451453,1712197842438,-150.24195427,0.00052822,120]
[321451454,1712197842448,-150.0,0.00052834,2]
[321451455,1712197842458,-157.35955129,0.00052892,60]
[321451456,1712197842467,-150.05386159,0.00052929,60]
[321451457,1712197842478,-154.06850799,0.00052965,60]
[321451458,1712197842487,-157.6431232,0.00052969,60]
[321451459,1712197842496,-486.97836623,0.00052969,120]
[321451460,1712197842506,-152.0,0.00052989,13]
[321451461,1712197842515,-1000.0,0.00053,3]
[321451463,1712197842524,-2047.75,0.00053,120]
[321451465,1712197842532,-879.0,0.00053,100]
[321451467,1712197842541,-150.0,0.0005304,7]
[321451469,1712197842550,-150.24195427,0.00053041,120]
[321451471,1712197842559,-153.79214004,0.00053082,60]
[321451474,1712197842569,-150.0,0.00053093,7]
[321451476,1712197842578,-359.23095586,0.00053094,2]
[321451478,1712197842587,-150.0,0.000531,11]
[321451480,1712197842597,-155.37123308,0.00053107,60]
[321451482,1712197842606,-780.01,0.0005315,30]
[321451484,1712197842615,-150.0,0.00053158,7]
[321451486,1712197842625,-150.0,0.00053161,7]
[321451489,1712197842634,-245.69075527,0.00053209,14]
[321451491,1712197842643,-7500.0,0.00053227,3]
[321451492,1712197842653,-150.24195427,0.0005326,120]
[321451493,1712197842661,-150.0,0.00053327,7]
[321451494,1712197842670,-162.27289693,0.00053342,120]
[321451495,1712197842679,-157.6431232,0.00053357,60]
[321451496,1712197842688,-151.0,0.0005337,120]
[321451497,1712197842697,-500.0,0.000534,120]
[321451498,1712197842706,-151.05748626,0.00053407,60]
[321451499,1712197842716,-500.0,0.00053424,30]
[321451500,1712197842726,-151.05748626,0.00053434,60]
[321451501,1712197842735,-500.0,0.0005346,120]
[321451502,1712197842744,-151.05748626,0.00053465,60]
[321451503,1712197842754,-150.24195427,0.00053479,120]
[321451504,1712197842763,-153.43627197,0.0005348,60]
[321451505,1712197842772,-151.05748626,0.00053489,60]
[321451507,1712197842781,-1596.75,0.00053499,120]
[321451508,1712197842790,-96339.49889855,0.000535,11]
[321451509,1712197842799,-999.84,0.000535,2]
[321451510,1712197842808,-500.0,0.000535,120]
[321451511,1712197842817,-331.04929411,0.000535,120]
[321451512,1712197842826,-879.0,0.000535,101]
[321451513,1712197842836,-500.0,0.000535,120]
[321451514,1712197842844,-500.0,0.000535,120]
[321451515,1712197842854,-500.0,0.000535,120]
[321451516,1712197842862,-500.0,0.000535,120]
[321451517,1712197842872,-500.0,0.000535,120]
[321451518,1712197842880,-500.0,0.000535,120]
[321451519,1712197842890,-500.0,0.000535,120]
[321451520,1712197842899,-1500.0,0.0005353,7]
[321451522,1712197842908,-1826.91217,0.00053552,30]
[321451523,1712197842917,-541.0,0.00053561,120]
[321451524,1712197842926,-514.0,0.00053561,120]
[321451525,1712197842935,-150.0,0.00053566,7]
[321451526,1712197842944,-150.0,0.00053572,7]
[321451527,1712197842954,-151.05748626,0.00053577,60]
[321451528,1712197842963,-150.0,0.00053581,7]
[321451529,1712197842972,-150.0,0.000536,11]
[321451530,1712197842982,-500.0,0.000536,120]
[321451531,1712197842991,-500.0,0.000536,120]
[321451532,1712197843000,-500.0,0.000536,120]
[321451533,1712197843009,-150.0,0.00053612,7]
[321451534,1712197843018,-154.36506632,0.00053623,7]
[321451535,1712197843028,-150.0,0.0005364,7]
[321451536,1712197843037,-1500.0,0.00053645,7]
[321451537,1712197843046,-151.05748626,0.00053647,60]
[321451538,1712197843055,-780.01,0.00053698,30]
[321451539,1712197843064,-541.0,0.00053698,120]
[321451540,1712197843073,-514.0,0.00053698,120]
[321451541,1712197843083,-150.24195427,0.00053699,120]
[321451542,1712197843092,-1500.0,0.000537,7]
[321451543,1712197843101,-158.99928236,0.00053712,60]
[321451544,1712197843111,-150.0,0.00053731,7]
[321451545,1712197843125,-150.05386159,0.00053749,60]
[321451546,1712197843134,-387.73758389,0.0005375,30]
[321451547,1712197843144,-1826.91217,0.00053752,30]
[321451548,1712197843154,-2187.91,0.0005377,90]
[321451549,1712197843164,-2187.91,0.0005377,90]
[321451550,1712197843173,-2187.91,0.0005377,90]
[321451551,1712197843183,-150.0,0.00053781,7]
[321451552,1712197843193,-150.0,0.00053781,7]
[321451553,1712197843203,-157.040411,0.00053794,115]
[321451554,1712197843212,-392.369205,0.000538,32]
[321451555,1712197843222,-150.0,0.00053811,7]
[321451556,1712197843233,-150.0,0.00053823,7]